[Event "*** Titled Tuesday Blitz"]
[Site "Chess.com"]
[Date "2021.03.09"]
[Round "9"]
[White "elohunter1999"]
[Black "KacperPolOK"]
[Result "1-0"]
[WhiteElo "2631"]
[BlackElo "2506"]
[TimeControl "180+1"]
[EndTime "11:49:54 PST"]
[Termination "elohunter1999 won on time"]

1. Nf3 {[%clk 0:03:00.9]} 1... c5 {[%clk 0:03:00.9]} 2. c4 {[%clk 0:02:59.9]}
2... Nc6 {[%clk 0:02:57]} 3. Nc3 {[%clk 0:02:59.6]} 3... Nf6 {[%clk 0:02:55.1]}
4. e3 {[%clk 0:02:57.1]} 4... g6 {[%clk 0:02:50]} 5. d4 {[%clk 0:02:56.9]} 5...
cxd4 {[%clk 0:02:49.9]} 6. exd4 {[%clk 0:02:57.8]} 6... d5 {[%clk 0:02:49.6]} 7.
cxd5 {[%clk 0:02:57.7]} 7... Nxd5 {[%clk 0:02:40.1]} 8. Qb3 {[%clk 0:02:57.6]}
8... Nxc3 {[%clk 0:02:27.3]} 9. Bc4 {[%clk 0:02:57.1]} 9... e6 {[%clk
0:02:14.1]} 10. bxc3 {[%clk 0:02:55.2]} 10... Bg7 {[%clk 0:02:14.4]} 11. Ba3
{[%clk 0:02:25.4]} 11... Na5 {[%clk 0:01:48.2]} 12. Bb5+ {[%clk 0:02:15.6]}
12... Bd7 {[%clk 0:01:47.1]} 13. Qa4 {[%clk 0:02:14.9]} 13... Bxb5 {[%clk
0:01:42.9]} 14. Qxb5+ {[%clk 0:02:14.5]} 14... Nc6 {[%clk 0:01:43.8]} 15. Qxb7
{[%clk 0:02:12.4]} 15... Rc8 {[%clk 0:01:38.8]} 16. O-O {[%clk 0:01:51.6]} 16...
Qd7 {[%clk 0:01:27.6]} 17. Qb5 {[%clk 0:01:29.9]} 17... Bf8 {[%clk 0:01:15]} 18.
Bxf8 {[%clk 0:01:25.9]} 18... Kxf8 {[%clk 0:01:15.9]} 19. Rfe1 {[%clk
0:01:23.8]} 19... Rb8 {[%clk 0:01:13.2]} 20. Qc5+ {[%clk 0:01:15.1]} 20... Kg7
{[%clk 0:01:12.9]} 21. Ne5 {[%clk 0:01:15.2]} 21... Nxe5 {[%clk 0:01:12.8]} 22.
Qxe5+ {[%clk 0:01:15.2]} 22... f6 {[%clk 0:01:06.2]} 23. Qxe6 {[%clk 0:01:15.5]}
23... Qxe6 {[%clk 0:01:07.1]} 24. Rxe6 {[%clk 0:01:15.9]} 24... Rhc8 {[%clk
0:01:03.6]} 25. Re3 {[%clk 0:01:07.1]} 25... Rb2 {[%clk 0:01:01.8]} 26. g3
{[%clk 0:01:03.5]} 26... Rc2 {[%clk 0:01:02]} 27. Re7+ {[%clk 0:00:54]} 27...
Kh6 {[%clk 0:01:00.5]} 28. Rxa7 {[%clk 0:00:53.8]} 28... R8xc3 {[%clk
0:00:57.6]} 29. Re1 {[%clk 0:00:39.7]} 29... Rd2 {[%clk 0:00:51.2]} 30. Ree7
{[%clk 0:00:37.3]} 30... Rcc2 {[%clk 0:00:51.6]} 31. h4 {[%clk 0:00:28]} 31...
Kh5 {[%clk 0:00:45.9]} 32. Re4 {[%clk 0:00:23.5]} 32... h6 {[%clk 0:00:41.6]}
33. Rf4 {[%clk 0:00:22.9]} 33... f5 {[%clk 0:00:25.9]} 34. a4 {[%clk 0:00:22.6]}
34... Rc4 {[%clk 0:00:25.8]} 35. Kg2 {[%clk 0:00:15]} 35... Rdxd4 {[%clk
0:00:23.1]} 36. Rxd4 {[%clk 0:00:15.9]} 36... Rxd4 {[%clk 0:00:24]} 37. a5
{[%clk 0:00:16.4]} 37... Ra4 {[%clk 0:00:24]} 38. Kf3 {[%clk 0:00:16.7]} 38...
Ra3+ {[%clk 0:00:23.9]} 39. Kf4 {[%clk 0:00:15.7]} 39... Ra4+ {[%clk 0:00:24]}
40. Ke5 {[%clk 0:00:15.9]} 40... Kg4 {[%clk 0:00:22.7]} 41. Kf6 {[%clk
0:00:12.3]} 41... g5 {[%clk 0:00:23]} 42. hxg5 {[%clk 0:00:11.8]} 42... hxg5
{[%clk 0:00:22.7]} 43. Rg7 {[%clk 0:00:12.4]} 43... f4 {[%clk 0:00:19.8]} 44.
Rxg5+ {[%clk 0:00:12.4]} 44... Kf3 {[%clk 0:00:18]} 45. gxf4 {[%clk 0:00:12.2]}
45... Kxf4 {[%clk 0:00:14.9]} 46. Rf5+ {[%clk 0:00:11.6]} 46... Kg4 {[%clk
0:00:15.2]} 47. f3+ {[%clk 0:00:11.6]} 47... Kg3 {[%clk 0:00:15.1]} 48. Kg5
{[%clk 0:00:11.3]} 48... Ra3 {[%clk 0:00:14.1]} 49. f4 {[%clk 0:00:11.6]} 49...
Ra4 {[%clk 0:00:14]} 50. Kf6 {[%clk 0:00:08.7]} 50... Kg4 {[%clk 0:00:13.2]} 51.
Ke6 {[%clk 0:00:08.7]} 51... Ra1 {[%clk 0:00:12.2]} 52. Rb5 {[%clk 0:00:05.4]}
52... Kxf4 {[%clk 0:00:11.9]} 53. Kd7 {[%clk 0:00:04.9]} 53... Ke4 {[%clk
0:00:11.2]} 54. Kc7 {[%clk 0:00:05.2]} 54... Kd4 {[%clk 0:00:09.7]} 55. Kb6
{[%clk 0:00:04]} 55... Rh1 {[%clk 0:00:07.7]} 56. a6 {[%clk 0:00:03.6]} 56...
Rh6+ {[%clk 0:00:07.4]} 57. Ka7 {[%clk 0:00:02.7]} 57... Kc4 {[%clk 0:00:06.6]}
58. Rb6 {[%clk 0:00:03.1]} 58... Rh7+ {[%clk 0:00:06.2]} 59. Rb7 {[%clk
0:00:03.6]} 59... Rh8 {[%clk 0:00:06.8]} 60. Kb6 {[%clk 0:00:03.4]} 60... Rh6+
{[%clk 0:00:07.2]} 61. Ka7 {[%clk 0:00:03.6]} 61... Rh8 {[%clk 0:00:07.5]} 62.
Rb8 {[%clk 0:00:03.8]} 62... Rh7+ {[%clk 0:00:08.1]} 63. Ka8 {[%clk 0:00:03.3]}
63... Kc5 {[%clk 0:00:08.5]} 64. Rb7 {[%clk 0:00:02.2]} 64... Rh8+ {[%clk
0:00:09]} 65. Ka7 {[%clk 0:00:02.6]} 65... Kc6 {[%clk 0:00:09.1]} 66. Rb2 {[%clk
0:00:02.4]} 66... Rh7+ {[%clk 0:00:08]} 67. Ka8 {[%clk 0:00:01.6]} 67... Rh8+
{[%clk 0:00:07.8]} 68. Rb8 {[%clk 0:00:02.5]} 68... Rh7 {[%clk 0:00:08]} 69. Rb7
{[%clk 0:00:02.9]} 69... Rh8+ {[%clk 0:00:07.7]} 70. Ka7 {[%clk 0:00:03.4]}
70... Rg8 {[%clk 0:00:07.2]} 71. Rb2 {[%clk 0:00:03.9]} 71... Rg7+ {[%clk
0:00:07.5]} 72. Rb7 {[%clk 0:00:03.7]} 72... Rg8 {[%clk 0:00:07.6]} 73. Rb6+
{[%clk 0:00:04]} 73... Kc7 {[%clk 0:00:07.5]} 74. Rb2 {[%clk 0:00:04.2]} 74...
Rg7 {[%clk 0:00:07.3]} 75. Rc2+ {[%clk 0:00:04]} 75... Kd8+ {[%clk 0:00:05.2]}
76. Kb8 {[%clk 0:00:03.9]} 76... Rg3 {[%clk 0:00:05.1]} 77. Rb2 {[%clk
0:00:02.9]} 77... Kd7 {[%clk 0:00:02.1]} 78. a7 {[%clk 0:00:03.1]} 78... Rg8+
{[%clk 0:00:02.2]} 79. Kb7 {[%clk 0:00:03.5]} 1-0

[Event "*** Titled Tuesday Blitz"]
[Site "Chess.com"]
[Date "2021.03.09"]
[Round "9"]
[White "AlexeiShirov"]
[Black "rasmussvane"]
[Result "1-0"]
[WhiteElo "2860"]
[BlackElo "2942"]
[TimeControl "180+1"]
[EndTime "11:49:58 PST"]
[Termination "AlexeiShirov won by resignation"]

1. e4 {[%clk 0:03:00.9]} 1... c6 {[%clk 0:03:00.5]} 2. d4 {[%clk 0:03:00.4]}
2... d5 {[%clk 0:03:01.4]} 3. e5 {[%clk 0:03:00.7]} 3... Bf5 {[%clk 0:03:02]} 4.
Nf3 {[%clk 0:03:00.7]} 4... e6 {[%clk 0:03:02.6]} 5. Be2 {[%clk 0:03:00.7]} 5...
Ne7 {[%clk 0:03:03.3]} 6. O-O {[%clk 0:03:00]} 6... Ng6 {[%clk 0:03:03.9]} 7. a4
{[%clk 0:02:58.7]} 7... Nd7 {[%clk 0:03:03.9]} 8. c3 {[%clk 0:02:58.7]} 8... f6
{[%clk 0:03:03.7]} 9. exf6 {[%clk 0:02:40.2]} 9... Qxf6 {[%clk 0:03:04.6]} 10.
Bg5 {[%clk 0:02:39.2]} 10... Qf7 {[%clk 0:03:04.7]} 11. Nbd2 {[%clk 0:02:38.6]}
11... Bd6 {[%clk 0:03:04.3]} 12. Nh4 {[%clk 0:02:19.5]} 12... O-O {[%clk
0:02:51.2]} 13. Bh5 {[%clk 0:02:15.9]} 13... Nf6 {[%clk 0:02:48.1]} 14. Bxg6
{[%clk 0:02:13.7]} 14... Bxg6 {[%clk 0:02:46.3]} 15. Bxf6 {[%clk 0:02:10.5]}
15... Qxf6 {[%clk 0:02:39.1]} 16. Nxg6 {[%clk 0:02:09.8]} 16... hxg6 {[%clk
0:02:14.1]} 17. Nf3 {[%clk 0:02:07.4]} 17... e5 {[%clk 0:02:14.1]} 18. dxe5
{[%clk 0:02:05.5]} 18... Bxe5 {[%clk 0:02:15]} 19. Re1 {[%clk 0:02:03.5]} 19...
Bd6 {[%clk 0:02:06.1]} 20. Qd3 {[%clk 0:02:01.6]} 20... Rae8 {[%clk 0:02:00.8]}
21. h3 {[%clk 0:01:53.9]} 21... a5 {[%clk 0:01:51.9]} 22. Rxe8 {[%clk
0:01:51.1]} 22... Rxe8 {[%clk 0:01:51.1]} 23. Re1 {[%clk 0:01:50.9]} 23... Rxe1+
{[%clk 0:01:48.3]} 24. Nxe1 {[%clk 0:01:50.2]} 24... Qg5 {[%clk 0:01:17.2]} 25.
Kf1 {[%clk 0:01:46.4]} 25... Kf7 {[%clk 0:01:11.4]} 26. Qf3+ {[%clk 0:01:35.8]}
26... Qf5 {[%clk 0:01:11]} 27. Ke2 {[%clk 0:01:32.3]} 27... Ke6 {[%clk
0:01:09.6]} 28. Qg4 {[%clk 0:01:25]} 28... Kf6 {[%clk 0:00:54.7]} 29. Nd3 {[%clk
0:01:23.3]} 29... c5 {[%clk 0:00:51.8]} 30. b3 {[%clk 0:01:12.1]} 30... b6
{[%clk 0:00:31.3]} 31. c4 {[%clk 0:01:10.9]} 31... Qe4+ {[%clk 0:00:26.3]} 32.
Qxe4 {[%clk 0:01:07.8]} 32... dxe4 {[%clk 0:00:27.2]} 33. Ne1 {[%clk 0:01:07.6]}
33... Be5 {[%clk 0:00:23.6]} 34. Ke3 {[%clk 0:01:04.7]} 34... Bd4+ {[%clk
0:00:20.1]} 35. Kxe4 {[%clk 0:01:03.8]} 35... Bxf2 {[%clk 0:00:20.7]} 36. Nd3
{[%clk 0:01:03.8]} 36... Bd4 {[%clk 0:00:14.1]} 37. Nf4 {[%clk 0:01:03.4]} 37...
Bb2 {[%clk 0:00:03.9]} 38. Nd5+ {[%clk 0:01:02.9]} 38... Kg5 {[%clk 0:00:04.6]}
39. Nxb6 {[%clk 0:01:02.3]} 39... Kh4 {[%clk 0:00:04]} 40. Kf3 {[%clk
0:01:01.1]} 40... Be5 {[%clk 0:00:04.5]} 41. Nd5 {[%clk 0:00:58.5]} 41... Bd6
{[%clk 0:00:04.6]} 42. Nc3 {[%clk 0:00:57.3]} 42... Bc7 {[%clk 0:00:04.5]} 43.
Ne4 {[%clk 0:00:57]} 43... Bb6 {[%clk 0:00:05]} 44. Kf4 {[%clk 0:00:51.6]} 44...
Bc7+ {[%clk 0:00:05.4]} 45. Kf3 {[%clk 0:00:51.7]} 45... Bb6 {[%clk 0:00:06.3]}
46. g3+ {[%clk 0:00:50.5]} 46... Kxh3 {[%clk 0:00:06.4]} 47. Ng5+ {[%clk
0:00:50.3]} 47... Kh2 {[%clk 0:00:06.6]} 48. Ne6 {[%clk 0:00:49.5]} 48... Kg1
{[%clk 0:00:07.1]} 49. Nxg7 {[%clk 0:00:48.1]} 49... Kf1 {[%clk 0:00:07.7]} 50.
Ne6 {[%clk 0:00:47.7]} 50... Ke1 {[%clk 0:00:08.3]} 51. Nf4 {[%clk 0:00:47.1]}
51... g5 {[%clk 0:00:07.4]} 52. Nd5 {[%clk 0:00:43.6]} 52... Bd8 {[%clk
0:00:07.6]} 53. Ke3 {[%clk 0:00:40.8]} 53... g4 {[%clk 0:00:06.9]} 54. Nc3
{[%clk 0:00:31.4]} 54... Bf6 {[%clk 0:00:07.2]} 55. Ne4 {[%clk 0:00:23]} 55...
Bd4+ {[%clk 0:00:07.5]} 56. Kf4 {[%clk 0:00:22.6]} 56... Kd1 {[%clk 0:00:07.8]}
57. Kxg4 {[%clk 0:00:22.4]} 57... Kc2 {[%clk 0:00:07.6]} 58. Kf5 {[%clk
0:00:21.9]} 58... Kxb3 {[%clk 0:00:08.1]} 59. g4 {[%clk 0:00:22.1]} 59... Kxc4
{[%clk 0:00:08.3]} 60. g5 {[%clk 0:00:22]} 60... Kd3 {[%clk 0:00:08.8]} 61. Nf6
{[%clk 0:00:20.5]} 61... c4 {[%clk 0:00:07.9]} 62. g6 {[%clk 0:00:20.6]} 62...
Bxf6 {[%clk 0:00:05.3]} 63. Kxf6 {[%clk 0:00:20]} 63... c3 {[%clk 0:00:05.9]}
64. g7 {[%clk 0:00:19.6]} 64... c2 {[%clk 0:00:06.4]} 65. g8=Q {[%clk
0:00:19.3]} 65... c1=Q {[%clk 0:00:06.8]} 66. Qd5+ {[%clk 0:00:18.6]} 66... Kc2
{[%clk 0:00:02]} 67. Qxa5 {[%clk 0:00:18.1]} 67... Qb2+ {[%clk 0:00:02.2]} 68.
Ke6 {[%clk 0:00:17.4]} 68... Qb3+ {[%clk 0:00:02.7]} 69. Kd6 {[%clk 0:00:17.4]}
69... Qd3+ {[%clk 0:00:03]} 70. Qd5 {[%clk 0:00:16.8]} 70... Qg6+ {[%clk
0:00:03.4]} 71. Kc5 {[%clk 0:00:16.2]} 71... Qg1+ {[%clk 0:00:03.4]} 72. Qd4
{[%clk 0:00:16.1]} 72... Qg5+ {[%clk 0:00:04]} 73. Kb6 {[%clk 0:00:16.1]} 73...
Qg6+ {[%clk 0:00:04]} 74. Ka7 {[%clk 0:00:15.9]} 74... Kb3 {[%clk 0:00:03.9]}
75. a5 {[%clk 0:00:15.4]} 75... Qf7+ {[%clk 0:00:04.4]} 76. Ka6 {[%clk
0:00:14.9]} 76... Qf1+ {[%clk 0:00:04.6]} 77. Kb6 {[%clk 0:00:13.8]} 77... Qf5
{[%clk 0:00:04.3]} 78. a6 {[%clk 0:00:13.5]} 78... Qe6+ {[%clk 0:00:04.9]} 79.
Kb7 {[%clk 0:00:12.7]} 79... Qf7+ {[%clk 0:00:05.2]} 80. Kb6 {[%clk 0:00:12.8]}
80... Qe6+ {[%clk 0:00:05.6]} 81. Kb5 {[%clk 0:00:12.7]} 81... Qe2+ {[%clk
0:00:05.2]} 82. Ka5 {[%clk 0:00:12.5]} 82... Qh5+ {[%clk 0:00:05.7]} 83. Kb6
{[%clk 0:00:11.7]} 83... Qg6+ {[%clk 0:00:06.3]} 84. Kb7 {[%clk 0:00:11.4]}
84... Qf7+ {[%clk 0:00:06.5]} 85. Kc6 {[%clk 0:00:11]} 85... Qe8+ {[%clk
0:00:06.4]} 86. Qd7 {[%clk 0:00:10.5]} 86... Qe4+ {[%clk 0:00:06.9]} 87. Qd5+
{[%clk 0:00:10.2]} 87... Qc4+ {[%clk 0:00:04.7]} 1-0

[Event "*** Titled Tuesday Blitz"]
[Site "Chess.com"]
[Date "2021.03.09"]
[Round "9"]
[White "Magila31"]
[Black "Ghost_Pepper"]
[Result "1/2-1/2"]
[WhiteElo "2233"]
[BlackElo "2384"]
[TimeControl "180+1"]
[EndTime "11:50:05 PST"]
[Termination "Game drawn by repetition"]

1. d4 {[%clk 0:02:59.2]} 1... Nf6 {[%clk 0:02:58.5]} 2. c4 {[%clk 0:02:58.3]}
2... g6 {[%clk 0:02:58.6]} 3. Nc3 {[%clk 0:02:57.7]} 3... d5 {[%clk 0:02:59.3]}
4. cxd5 {[%clk 0:02:57.2]} 4... Nxd5 {[%clk 0:03:00.2]} 5. Bd2 {[%clk
0:02:56.7]} 5... Nb6 {[%clk 0:02:59.9]} 6. Bf4 {[%clk 0:02:55.6]} 6... Bg7
{[%clk 0:03:00.1]} 7. e3 {[%clk 0:02:55.2]} 7... c5 {[%clk 0:03:00.6]} 8. dxc5
{[%clk 0:02:51.5]} 8... Bxc3+ {[%clk 0:03:00.7]} 9. bxc3 {[%clk 0:02:50.4]} 9...
Qxd1+ {[%clk 0:03:00.5]} 10. Rxd1 {[%clk 0:02:49.4]} 10... N6d7 {[%clk
0:03:00.8]} 11. Bh6 {[%clk 0:02:27.6]} 11... Nc6 {[%clk 0:02:51.6]} 12. Nf3
{[%clk 0:02:23]} 12... Nxc5 {[%clk 0:02:43.4]} 13. Bb5 {[%clk 0:02:11.4]} 13...
Bd7 {[%clk 0:02:06.6]} 14. O-O {[%clk 0:02:03.5]} 14... f6 {[%clk 0:02:04.7]}
15. h4 {[%clk 0:01:59.9]} 15... O-O-O {[%clk 0:02:00.2]} 16. Nd4 {[%clk
0:01:56]} 16... Nxd4 {[%clk 0:01:57.2]} 17. Bxd7+ {[%clk 0:01:55.3]} 17... Rxd7
{[%clk 0:01:54.3]} 18. cxd4 {[%clk 0:01:55.7]} 18... Ne4 {[%clk 0:01:54]} 19.
Bf4 {[%clk 0:01:52.3]} 19... b6 {[%clk 0:01:49.2]} 20. f3 {[%clk 0:01:47.5]}
20... Nd6 {[%clk 0:01:46.2]} 21. Rc1+ {[%clk 0:01:36.8]} 21... Kb7 {[%clk
0:01:46.2]} 22. d5 {[%clk 0:01:36.1]} 22... Nf5 {[%clk 0:01:33.8]} 23. e4 {[%clk
0:01:14.9]} 23... Nd4 {[%clk 0:01:28.4]} 24. Kf2 {[%clk 0:01:11.7]} 24... Rc8
{[%clk 0:01:23.6]} 25. Rxc8 {[%clk 0:01:08.9]} 25... Kxc8 {[%clk 0:01:24.5]} 26.
Rc1+ {[%clk 0:01:09]} 26... Kb7 {[%clk 0:01:24.6]} 27. Ke3 {[%clk 0:01:05.4]}
27... e5 {[%clk 0:01:09.9]} 28. Bh2 {[%clk 0:01:04.7]} 28... Nb5 {[%clk
0:01:07.4]} 29. g4 {[%clk 0:01:02.2]} 29... Nd6 {[%clk 0:01:05.1]} 30. g5 {[%clk
0:01:01.8]} 30... fxg5 {[%clk 0:01:00.4]} 31. hxg5 {[%clk 0:01:01.6]} 31... Nf7
{[%clk 0:01:00.7]} 32. Rc6 {[%clk 0:00:54.7]} 32... Rc7 {[%clk 0:00:54.8]} 33.
Re6 {[%clk 0:00:45.9]} 33... Rc3+ {[%clk 0:00:51.5]} 34. Kd2 {[%clk 0:00:45.9]}
34... Rxf3 {[%clk 0:00:50.1]} 35. Bxe5 {[%clk 0:00:43.3]} 35... Nxg5 {[%clk
0:00:49.2]} 36. Re7+ {[%clk 0:00:42.9]} 36... Kc8 {[%clk 0:00:47.6]} 37. Bd4
{[%clk 0:00:39.3]} 37... Ra3 {[%clk 0:00:37.8]} 38. e5 {[%clk 0:00:31.5]} 38...
Nf3+ {[%clk 0:00:37.3]} 39. Kc2 {[%clk 0:00:29.3]} 39... Nxd4+ {[%clk
0:00:38.2]} 40. Kb2 {[%clk 0:00:29.4]} 40... Re3 {[%clk 0:00:38.2]} 41. d6
{[%clk 0:00:29.1]} 41... Nc6 {[%clk 0:00:37.3]} 42. Rc7+ {[%clk 0:00:28.4]}
42... Kd8 {[%clk 0:00:36.6]} 43. Rxc6 {[%clk 0:00:27.3]} 43... Rxe5 {[%clk
0:00:37.1]} 44. Rc7 {[%clk 0:00:27.7]} 44... a5 {[%clk 0:00:36.4]} 45. Rxh7
{[%clk 0:00:27.4]} 45... Re6 {[%clk 0:00:36.7]} 46. d7 {[%clk 0:00:27.2]} 46...
Rd6 {[%clk 0:00:36.9]} 47. Rg7 {[%clk 0:00:27.2]} 47... Kc7 {[%clk 0:00:37]} 48.
a4 {[%clk 0:00:26.5]} 48... Kc6 {[%clk 0:00:30.9]} 49. d8=Q {[%clk 0:00:25]}
49... Rxd8 {[%clk 0:00:30.5]} 50. Rxg6+ {[%clk 0:00:24.3]} 50... Kc5 {[%clk
0:00:31.1]} 51. Rg5+ {[%clk 0:00:24.4]} 51... Rd5 {[%clk 0:00:30.8]} 52. Rg6
{[%clk 0:00:20.3]} 52... Rd4 {[%clk 0:00:29.4]} 53. Kb3 {[%clk 0:00:19.6]} 53...
Rd3+ {[%clk 0:00:28.6]} 54. Kb2 {[%clk 0:00:19.6]} 54... Rd6 {[%clk 0:00:28.7]}
55. Rg5+ {[%clk 0:00:19]} 55... Kc4 {[%clk 0:00:25.8]} 56. Rb5 {[%clk 0:00:18]}
56... Rh6 {[%clk 0:00:20]} 57. Ka3 {[%clk 0:00:16.3]} 57... Rg6 {[%clk
0:00:19.3]} 58. Ka2 {[%clk 0:00:16]} 58... Rf6 {[%clk 0:00:18.8]} 59. Ka3 {[%clk
0:00:16]} 59... Rc6 {[%clk 0:00:18]} 60. Ka2 {[%clk 0:00:15.7]} 60... Kc3 {[%clk
0:00:17.9]} 61. Ka3 {[%clk 0:00:15.5]} 61... Kc2 {[%clk 0:00:17.8]} 62. Ka2
{[%clk 0:00:14.3]} 62... Kc1 {[%clk 0:00:17.6]} 63. Kb3 {[%clk 0:00:13.9]} 63...
Kd2 {[%clk 0:00:18.3]} 64. Rd5+ {[%clk 0:00:13.4]} 64... Ke3 {[%clk 0:00:18.3]}
65. Re5+ {[%clk 0:00:13.2]} 65... Kd4 {[%clk 0:00:18.6]} 66. Rb5 {[%clk
0:00:13.5]} 66... Rc3+ {[%clk 0:00:18.4]} 67. Kb2 {[%clk 0:00:13.3]} 67... Rc4
{[%clk 0:00:17.9]} 68. Kb3 {[%clk 0:00:12.7]} 68... Rc6 {[%clk 0:00:18.2]} 69.
Kb2 {[%clk 0:00:10.8]} 69... Kc4 {[%clk 0:00:18.7]} 70. Ka3 {[%clk 0:00:10.9]}
70... Rd6 {[%clk 0:00:19.2]} 71. Kb2 {[%clk 0:00:10.4]} 71... Re6 {[%clk
0:00:19]} 72. Ka3 {[%clk 0:00:10.4]} 72... Re3+ {[%clk 0:00:18.7]} 73. Kb2
{[%clk 0:00:10.7]} 73... Re2+ {[%clk 0:00:19.2]} 74. Ka3 {[%clk 0:00:10.9]}
74... Re1 {[%clk 0:00:18.8]} 75. Rxb6 {[%clk 0:00:08.9]} 75... Ra1+ {[%clk
0:00:18.8]} 76. Kb2 {[%clk 0:00:09]} 76... Rxa4 {[%clk 0:00:19.4]} 77. Rc6+
{[%clk 0:00:08.7]} 77... Kb5 {[%clk 0:00:19.8]} 78. Rh6 {[%clk 0:00:08.4]} 78...
Re4 {[%clk 0:00:20]} 79. Rh5+ {[%clk 0:00:08.6]} 79... Kb4 {[%clk 0:00:20.5]}
80. Rh3 {[%clk 0:00:09]} 80... a4 {[%clk 0:00:21.1]} 81. Ka2 {[%clk 0:00:09.2]}
81... Re2+ {[%clk 0:00:21.1]} 82. Kb1 {[%clk 0:00:09.3]} 82... Re4 {[%clk
0:00:21.5]} 83. Kb2 {[%clk 0:00:08.7]} 83... Rg4 {[%clk 0:00:21.8]} 84. Ka2
{[%clk 0:00:08.8]} 84... a3 {[%clk 0:00:22.1]} 85. Kb1 {[%clk 0:00:08]} 85...
Ka4 {[%clk 0:00:22.1]} 86. Rh8 {[%clk 0:00:07.3]} 86... Rg1+ {[%clk 0:00:20.2]}
87. Ka2 {[%clk 0:00:06.8]} 87... Rg2+ {[%clk 0:00:20.7]} 88. Kb1 {[%clk
0:00:07.1]} 88... a2+ {[%clk 0:00:17.9]} 89. Ka1 {[%clk 0:00:07.2]} 89... Kb3
{[%clk 0:00:18.5]} 90. Rb8+ {[%clk 0:00:07]} 90... Kc3 {[%clk 0:00:19]} 91. Rc8+
{[%clk 0:00:07.4]} 91... Kb3 {[%clk 0:00:19.3]} 92. Rb8+ {[%clk 0:00:07.6]}
92... Ka3 {[%clk 0:00:19.7]} 93. Ra8+ {[%clk 0:00:08]} 93... Kb3 {[%clk
0:00:20.3]} 94. Rb8+ {[%clk 0:00:08.4]} 1/2-1/2